[Event "*** Titled Tuesday 3|2 Blitz (Early)"]
[Site "Chess.com"]
[Date "2017.01.03"]
[Round "9"]
[White "Lupul_Cenusiu"]
[Black "Buffy7"]
[Result "0-1"]
[WhiteElo "2458"]
[BlackElo "2495"]
[TimeControl "180+2"]
[EndTime "12:56:32 PST"]
[Termination "Buffy7 won by checkmate"]

1. d4 {[%clk 0:03:02]} 1... Nf6 {[%clk 0:02:59.2]} 2. c4 {[%clk 0:03:02.6]} 2...
e6 {[%clk 0:03:00.5]} 3. Nc3 {[%clk 0:03:03.1]} 3... Bb4 {[%clk 0:03:01.6]} 4.
e3 {[%clk 0:03:04.1]} 4... b6 {[%clk 0:03:01.7]} 5. Nf3 {[%clk 0:03:04.5]} 5...
Ne4 {[%clk 0:02:59.9]} 6. Bd2 {[%clk 0:03:04.5]} 6... Nxd2 {[%clk 0:02:58.1]} 7.
Qxd2 {[%clk 0:03:05.4]} 7... Bb7 {[%clk 0:02:58.6]} 8. Be2 {[%clk 0:03:05.9]}
8... d5 {[%clk 0:02:54.7]} 9. a3 {[%clk 0:03:06.3]} 9... Bd6 {[%clk 0:02:54.5]}
10. cxd5 {[%clk 0:03:03.1]} 10... exd5 {[%clk 0:02:56.4]} 11. Ne5 {[%clk
0:03:03.7]} 11... O-O {[%clk 0:02:55.3]} 12. O-O {[%clk 0:03:03.7]} 12... Nd7
{[%clk 0:02:47.6]} 13. f4 {[%clk 0:03:04.1]} 13... f6 {[%clk 0:02:45.1]} 14. Nd3
{[%clk 0:03:01.7]} 14... a6 {[%clk 0:02:42.5]} 15. Bf3 {[%clk 0:03:02.1]} 15...
c6 {[%clk 0:02:41.6]} 16. e4 {[%clk 0:03:00.7]} 16... dxe4 {[%clk 0:02:41.2]}
17. Nxe4 {[%clk 0:03:01.2]} 17... Bc7 {[%clk 0:02:40.2]} 18. Rac1 {[%clk
0:02:58.8]} 18... Qe7 {[%clk 0:02:33]} 19. f5 {[%clk 0:02:45.4]} 19... Rad8
{[%clk 0:02:31.9]} 20. Rfe1 {[%clk 0:02:43.7]} 20... Qf7 {[%clk 0:02:32]} 21.
Qc3 {[%clk 0:02:44.7]} 21... c5 {[%clk 0:02:19]} 22. dxc5 {[%clk 0:02:38]} 22...
Ne5 {[%clk 0:02:17]} 23. Nxe5 {[%clk 0:02:33.1]} 23... Bxe5 {[%clk 0:02:18.9]}
24. Qc2 {[%clk 0:02:28]} 24... bxc5 {[%clk 0:02:15.4]} 25. Nxc5 {[%clk
0:02:17.8]} 25... Bxf3 {[%clk 0:02:11.4]} 26. gxf3 {[%clk 0:02:18.2]} 26... Qh5
{[%clk 0:02:01.8]} 27. Ne6 {[%clk 0:02:16.1]} 27... Qxf3 {[%clk 0:02:01.7]} 28.
Qg2 {[%clk 0:01:50.5]} 28... Qxg2+ {[%clk 0:01:47.9]} 29. Kxg2 {[%clk
0:01:51.6]} 29... Rd2+ {[%clk 0:01:49.6]} 30. Kf3 {[%clk 0:01:52.8]} 30... Rb8
{[%clk 0:01:50.6]} 31. b4 {[%clk 0:01:53]} 31... Rd3+ {[%clk 0:01:50.6]} 32. Ke4
{[%clk 0:01:51.1]} 32... Rxa3 {[%clk 0:01:50.7]} 33. Rc4 {[%clk 0:01:50.8]}
33... Rb3 {[%clk 0:01:50.2]} 34. Rg1 {[%clk 0:01:50.9]} 34... g6 {[%clk
0:01:29.6]} 35. fxg6 {[%clk 0:01:49.4]} 35... R8xb4 {[%clk 0:01:29.2]} 36. Rxb4
{[%clk 0:01:41.5]} 36... Rxb4+ {[%clk 0:01:31.1]} 37. Kf5 {[%clk 0:01:42.4]}
37... Rb2 {[%clk 0:01:21.9]} 38. h4 {[%clk 0:01:33.7]} 38... Rf2+ {[%clk
0:01:22.4]} 39. Ke4 {[%clk 0:01:34.8]} 39... hxg6 {[%clk 0:01:22.3]} 40. Rxg6+
{[%clk 0:01:34]} 40... Kf7 {[%clk 0:01:22.1]} 41. Rg7+ {[%clk 0:01:24.5]} 41...
Kxe6 {[%clk 0:01:23.2]} 42. Ra7 {[%clk 0:01:25.1]} 42... Rf4+ {[%clk 0:01:23]}
43. Ke3 {[%clk 0:01:26.4]} 43... Bd4+ {[%clk 0:01:16.5]} 44. Kxf4 {[%clk
0:01:26.7]} 44... Bxa7 {[%clk 0:01:17.6]} 45. h5 {[%clk 0:01:28.5]} 45... Kf7
{[%clk 0:01:18.7]} 46. Kf5 {[%clk 0:01:29]} 46... a5 {[%clk 0:01:19.3]} 47. h6
{[%clk 0:01:30.2]} 47... a4 {[%clk 0:01:19.2]} 48. h7 {[%clk 0:01:31.6]} 48...
Kg7 {[%clk 0:01:20.4]} 49. h8=Q+ {[%clk 0:01:30.9]} 49... Kxh8 {[%clk
0:01:21.6]} 50. Kxf6 {[%clk 0:01:32.3]} 50... a3 {[%clk 0:01:23.1]} 51. Kf7
{[%clk 0:01:33.7]} 51... a2 {[%clk 0:01:24.7]} 52. Kg6 {[%clk 0:01:35]} 52...
a1=Q {[%clk 0:01:25.6]} 53. Kh6 {[%clk 0:01:36.2]} 53... Qg7+ {[%clk 0:01:26.2]}
54. Kh5 {[%clk 0:01:37.5]} 54... Bb8 {[%clk 0:01:27]} 55. Kh4 {[%clk 0:01:38.4]}
55... Kg8 {[%clk 0:01:28]} 56. Kh5 {[%clk 0:01:39.5]} 56... Kf8 {[%clk
0:01:29.5]} 57. Kh4 {[%clk 0:01:40.7]} 57... Ke7 {[%clk 0:01:31]} 58. Kh5 {[%clk
0:01:42.1]} 58... Kd6 {[%clk 0:01:32.5]} 59. Kh4 {[%clk 0:01:43.4]} 59... Kd5
{[%clk 0:01:34]} 60. Kh5 {[%clk 0:01:44.8]} 60... Ke4 {[%clk 0:01:35.5]} 61. Kh4
{[%clk 0:01:46.2]} 61... Kf4 {[%clk 0:01:37]} 62. Kh5 {[%clk 0:01:47.7]} 62...
Bc7 {[%clk 0:01:37.5]} 63. Kh4 {[%clk 0:01:48.8]} 63... Qg4# {[%clk 0:01:39.1]}
0-1

[Event "*** Titled Tuesday 3|2 Blitz (Early)"]
[Site "Chess.com"]
[Date "2017.01.03"]
[Round "9"]
[White "Jahonas"]
[Black "pedromartinez91"]
[Result "1-0"]
[WhiteElo "2133"]
[BlackElo "2290"]
[TimeControl "180+2"]
[EndTime "12:57:12 PST"]
[Termination "Jahonas won by resignation"]

1. d4 {[%clk 0:03:02]} 1... d5 {[%clk 0:02:58.5]} 2. c4 {[%clk 0:03:02.6]} 2...
dxc4 {[%clk 0:02:49.4]} 3. e3 {[%clk 0:03:02]} 3... e5 {[%clk 0:02:32.6]} 4.
Bxc4 {[%clk 0:02:59.1]} 4... exd4 {[%clk 0:02:30.4]} 5. exd4 {[%clk 0:03:00.2]}
5... Bd6 {[%clk 0:02:31.5]} 6. Nf3 {[%clk 0:03:00.1]} 6... Ne7 {[%clk
0:02:21.7]} 7. O-O {[%clk 0:03:00.4]} 7... O-O {[%clk 0:02:21.5]} 8. Nc3 {[%clk
0:03:00.9]} 8... Bg4 {[%clk 0:02:21.5]} 9. h3 {[%clk 0:03:01]} 9... Bh5 {[%clk
0:02:20.6]} 10. Ne4 {[%clk 0:02:59.4]} 10... Nbc6 {[%clk 0:02:20.7]} 11. Ng3
{[%clk 0:02:44]} 11... Bxg3 {[%clk 0:02:15.3]} 12. fxg3 {[%clk 0:02:44.8]} 12...
Bxf3 {[%clk 0:02:16.2]} 13. Rxf3 {[%clk 0:02:41.4]} 13... Qxd4+ {[%clk 0:02:17]}
14. Qxd4 {[%clk 0:02:38.7]} 14... Nxd4 {[%clk 0:02:00]} 15. Rd3 {[%clk
0:02:36.7]} 15... Nec6 {[%clk 0:02:00.1]} 16. Be3 {[%clk 0:02:35.9]} 16... Rad8
{[%clk 0:02:00]} 17. Bxd4 {[%clk 0:02:36.4]} 17... Rxd4 {[%clk 0:01:59.8]} 18.
Rxd4 {[%clk 0:02:37.1]} 18... Nxd4 {[%clk 0:01:54.3]} 19. Re1 {[%clk 0:02:36.8]}
19... c5 {[%clk 0:01:51.5]} 20. Re7 {[%clk 0:02:36.1]} 20... b5 {[%clk
0:01:49.5]} 21. Bd5 {[%clk 0:02:33.1]} 21... h5 {[%clk 0:01:42.9]} 22. Rxa7
{[%clk 0:02:32]} 22... Rd8 {[%clk 0:01:27.4]} 23. Bxf7+ {[%clk 0:02:30.7]} 23...
Kh7 {[%clk 0:01:23.9]} 24. Bxh5 {[%clk 0:02:30.8]} 24... Kh6 {[%clk 0:01:22.2]}
25. Bg4 {[%clk 0:02:29.2]} 25... g5 {[%clk 0:01:19.8]} 26. Rc7 {[%clk
0:02:28.6]} 26... c4 {[%clk 0:01:18.2]} 27. a4 {[%clk 0:02:29]} 27... bxa4
{[%clk 0:01:14.4]} 28. Rxc4 {[%clk 0:02:29.4]} 28... Rd6 {[%clk 0:01:15.1]} 29.
Rxa4 {[%clk 0:02:29.4]} 29... Kg7 {[%clk 0:01:08]} 30. Ra7+ {[%clk 0:02:26.6]}
30... Kf6 {[%clk 0:01:08.4]} 31. Rh7 {[%clk 0:02:23.2]} 31... Ke5 {[%clk
0:01:08.8]} 32. Rf7 {[%clk 0:02:21.6]} 32... Kd5 {[%clk 0:01:07.7]} 33. h4
{[%clk 0:02:18.7]} 33... gxh4 {[%clk 0:01:01]} 34. gxh4 {[%clk 0:02:19.6]} 34...
Rh6 {[%clk 0:00:56.4]} 35. h5 {[%clk 0:02:18.7]} 35... Rh8 {[%clk 0:00:53.4]}
36. Bd1 {[%clk 0:01:57.8]} 36... Ke6 {[%clk 0:00:53.5]} 37. Rf4 {[%clk 0:01:55]}
37... Ke5 {[%clk 0:00:53.7]} 38. Rf1 {[%clk 0:01:51.6]} 38... Nf5 {[%clk
0:00:54.2]} 39. g4 {[%clk 0:01:49]} 39... Ne3 {[%clk 0:00:37.1]} 40. Re1 {[%clk
0:01:49]} 40... Kf4 {[%clk 0:00:37.4]} 41. Rxe3 {[%clk 0:01:42.2]} 41... Kxe3
{[%clk 0:00:36.6]} 42. g5 {[%clk 0:01:43.3]} 42... Kf4 {[%clk 0:00:35.3]} 43. g6
{[%clk 0:01:44.3]} 43... Kg3 {[%clk 0:00:13.9]} 44. g7 {[%clk 0:01:36.6]} 44...
Rc8 {[%clk 0:00:15.2]} 45. h6 {[%clk 0:01:28.2]} 45... Rc1 {[%clk 0:00:15.4]}
46. Kf1 {[%clk 0:01:29.1]} 46... Rxd1+ {[%clk 0:00:16.1]} 47. Ke2 {[%clk
0:01:30.3]} 47... Rd8 {[%clk 0:00:15.8]} 48. h7 {[%clk 0:01:30.7]} 48... Re8+
{[%clk 0:00:16.8]} 49. Kd3 {[%clk 0:01:31.4]} 49... Kf4 {[%clk 0:00:18]} 50.
g8=Q {[%clk 0:01:31.8]} 50... Rxg8 {[%clk 0:00:18.9]} 51. hxg8=Q {[%clk
0:01:32.9]} 1-0

[Event "*** Titled Tuesday 3|2 Blitz (Early)"]
[Site "Chess.com"]
[Date "2017.01.03"]
[Round "9"]
[White "AdrianaNikolova"]
[Black "Hamisandwich"]
[Result "0-1"]
[WhiteElo "2252"]
[BlackElo "2385"]
[TimeControl "180+2"]
[EndTime "12:57:17 PST"]
[Termination "Hamisandwich won by resignation"]

1. e4 {[%clk 0:03:01.9]} 1... c5 {[%clk 0:02:59.7]} 2. c3 {[%clk 0:03:02.5]}
2... Nf6 {[%clk 0:02:57]} 3. e5 {[%clk 0:03:02.9]} 3... Nd5 {[%clk 0:02:58.6]}
4. d4 {[%clk 0:03:04.8]} 4... cxd4 {[%clk 0:03:00.5]} 5. Nf3 {[%clk 0:03:06.3]}
5... Nc6 {[%clk 0:03:00.4]} 6. cxd4 {[%clk 0:03:08.2]} 6... d6 {[%clk
0:03:00.9]} 7. Bc4 {[%clk 0:03:06.8]} 7... Nb6 {[%clk 0:03:02]} 8. Bb5 {[%clk
0:03:08.1]} 8... dxe5 {[%clk 0:02:57.7]} 9. Nxe5 {[%clk 0:03:10]} 9... Bd7
{[%clk 0:02:51.3]} 10. Nxd7 {[%clk 0:03:11]} 10... Qxd7 {[%clk 0:02:51.9]} 11.
O-O {[%clk 0:03:12.9]} 11... e6 {[%clk 0:02:49.2]} 12. Nc3 {[%clk 0:03:13.7]}
12... Be7 {[%clk 0:02:44]} 13. Be3 {[%clk 0:03:12.3]} 13... a6 {[%clk
0:02:32.9]} 14. Bxc6 {[%clk 0:02:56.4]} 14... Qxc6 {[%clk 0:02:34.8]} 15. Qg4
{[%clk 0:02:57.4]} 15... Bf6 {[%clk 0:02:20.8]} 16. Ne4 {[%clk 0:02:15.8]} 16...
h5 {[%clk 0:01:59.5]} 17. Nxf6+ {[%clk 0:02:12.1]} 17... gxf6 {[%clk 0:02:01.4]}
18. Qg7 {[%clk 0:02:12.8]} 18... Ke7 {[%clk 0:02:02.9]} 19. Rac1 {[%clk
0:01:40.2]} 19... Rag8 {[%clk 0:01:52.1]} 20. Rxc6 {[%clk 0:01:34.1]} 20... bxc6
{[%clk 0:01:53.1]} 21. Qxh8 {[%clk 0:01:12]} 21... Rxh8 {[%clk 0:01:53.7]} 22.
Rc1 {[%clk 0:01:13.9]} 22... Kd7 {[%clk 0:01:53.8]} 23. Kf1 {[%clk 0:01:02.8]}
23... Nd5 {[%clk 0:01:51.6]} 24. Ke2 {[%clk 0:01:04.3]} 24... h4 {[%clk
0:01:43]} 25. g3 {[%clk 0:01:02.9]} 25... f5 {[%clk 0:01:32.5]} 26. Rc4 {[%clk
0:01:02.4]} 26... h3 {[%clk 0:01:30.8]} 27. Ra4 {[%clk 0:00:57.1]} 27... Ra8
{[%clk 0:01:31.9]} 28. Kf3 {[%clk 0:00:57.1]} 28... Nf6 {[%clk 0:01:32.1]} 29.
g4 {[%clk 0:00:26.7]} 29... Nxg4 {[%clk 0:01:29.8]} 30. Kg3 {[%clk 0:00:28.2]}
30... Kd6 {[%clk 0:01:12]} 31. Kxh3 {[%clk 0:00:24]} 31... Kd5 {[%clk
0:01:03.4]} 32. Kg3 {[%clk 0:00:24.8]} 32... Nxe3 {[%clk 0:00:51.3]} 33. fxe3
{[%clk 0:00:25.6]} 33... Ke4 {[%clk 0:00:52.9]} 34. Kf2 {[%clk 0:00:25.8]} 34...
Rh8 {[%clk 0:00:53.9]} 35. b3 {[%clk 0:00:19.1]} 35... Rxh2+ {[%clk 0:00:52.8]}
36. Kg3 {[%clk 0:00:20.7]} 36... Rc2 {[%clk 0:00:52]} 37. d5+ {[%clk 0:00:19.5]}
37... Kxe3 {[%clk 0:00:51]} 38. dxe6 {[%clk 0:00:17.9]} 38... fxe6 {[%clk
0:00:52.9]} 39. Rxa6 {[%clk 0:00:19.2]} 39... f4+ {[%clk 0:00:53.2]} 40. Kg4
{[%clk 0:00:19.3]} 40... f3 {[%clk 0:00:52.4]} 41. Ra8 {[%clk 0:00:20.4]} 41...
f2 {[%clk 0:00:49.7]} 42. Rf8 {[%clk 0:00:21.7]} 42... Ke2 {[%clk 0:00:49.1]}
0-1

[Event "*** Titled Tuesday 3|2 Blitz (Early)"]
[Site "Chess.com"]
[Date "2017.01.03"]
[Round "9"]
[White "Gabrielian_Artur"]
[Black "Ilja_Semjonovs"]
[Result "0-1"]
[WhiteElo "2636"]
[BlackElo "2193"]
[TimeControl "180+2"]
[EndTime "12:57:24 PST"]
[Termination "Ilja_Semjonovs won by checkmate"]

1. e4 {[%clk 0:03:02]} 1... c5 {[%clk 0:03:00.2]} 2. Nf3 {[%clk 0:03:02.3]} 2...
d6 {[%clk 0:03:01.3]} 3. d4 {[%clk 0:03:03.5]} 3... cxd4 {[%clk 0:03:02.4]} 4.
Nxd4 {[%clk 0:03:05.1]} 4... Nf6 {[%clk 0:03:04.1]} 5. Nc3 {[%clk 0:03:06.7]}
5... a6 {[%clk 0:03:04.5]} 6. Bg5 {[%clk 0:03:07.5]} 6... e6 {[%clk 0:03:05.4]}
7. f4 {[%clk 0:03:07.9]} 7... Qb6 {[%clk 0:03:06.4]} 8. Qd2 {[%clk 0:03:06.8]}
8... Qxb2 {[%clk 0:03:06.8]} 9. Rb1 {[%clk 0:03:08.2]} 9... Qa3 {[%clk
0:03:07.7]} 10. Nb3 {[%clk 0:02:58]} 10... Be7 {[%clk 0:03:03.8]} 11. Bd3 {[%clk
0:02:58.1]} 11... h6 {[%clk 0:02:54.9]} 12. Bxf6 {[%clk 0:02:26.2]} 12... Bxf6
{[%clk 0:02:55.5]} 13. O-O {[%clk 0:02:27.1]} 13... Nd7 {[%clk 0:02:52.9]} 14.
Kh1 {[%clk 0:02:15.1]} 14... O-O {[%clk 0:02:50.7]} 15. Rf3 {[%clk 0:02:09.9]}
15... b5 {[%clk 0:02:45.8]} 16. e5 {[%clk 0:02:03]} 16... dxe5 {[%clk
0:02:41.4]} 17. Ne4 {[%clk 0:02:03.2]} 17... Qe7 {[%clk 0:02:30.7]} 18. Rbf1
{[%clk 0:01:56.5]} 18... Bb7 {[%clk 0:02:26.3]} 19. Na5 {[%clk 0:01:51.6]} 19...
Bd5 {[%clk 0:02:21.8]} 20. Rg3 {[%clk 0:01:49.9]} 20... exf4 {[%clk 0:02:17.6]}
21. Qxf4 {[%clk 0:01:36.6]} 21... Be5 {[%clk 0:02:00.1]} 22. Qxh6 {[%clk
0:01:37.1]} 22... Bxg3 {[%clk 0:01:43.7]} 23. Qh3 {[%clk 0:01:31]} 23... Bh4
{[%clk 0:01:39.2]} 24. Rf4 {[%clk 0:01:26.7]} 24... Bxe4 {[%clk 0:01:31.9]} 25.
Rxh4 {[%clk 0:01:16.7]} 25... f5 {[%clk 0:01:22.2]} 26. Bxe4 {[%clk 0:00:47.1]}
26... Qg5 {[%clk 0:01:03.3]} 27. Nb3 {[%clk 0:00:29.6]} 27... fxe4 {[%clk
0:01:03.2]} 28. g3 {[%clk 0:00:23.6]} 28... Rac8 {[%clk 0:00:46.5]} 29. Qxe6+
{[%clk 0:00:23.7]} 29... Rf7 {[%clk 0:00:46.3]} 30. Rf4 {[%clk 0:00:25]} 30...
Qe7 {[%clk 0:00:42.6]} 31. Qd5 {[%clk 0:00:24]} 31... Rxc2 {[%clk 0:00:39.6]}
32. Nd4 {[%clk 0:00:23.1]} 32... Nf6 {[%clk 0:00:35.9]} 33. Qb3 {[%clk
0:00:19.1]} 33... Rd2 {[%clk 0:00:33]} 34. Nf5 {[%clk 0:00:20.1]} 34... Qc5
{[%clk 0:00:31.1]} 35. Rf1 {[%clk 0:00:18.1]} 35... Ng4 {[%clk 0:00:27.5]} 36.
Qe6 {[%clk 0:00:17.7]} 36... Rxh2# {[%clk 0:00:26.1]} 0-1

[Event "*** Titled Tuesday 3|2 Blitz (Early)"]
[Site "Chess.com"]
[Date "2017.01.03"]
[Round "9"]
[White "Alexander_Moskalenko"]
[Black "Dlugy"]
[Result "1-0"]
[WhiteElo "2678"]
[BlackElo "2687"]
[TimeControl "180+2"]
[EndTime "12:58:15 PST"]
[Termination "Alexander_Moskalenko won by resignation"]

1. e4 {[%clk 0:03:02]} 1... c5 {[%clk 0:03:00.9]} 2. Nf3 {[%clk 0:03:03.2]} 2...
d6 {[%clk 0:03:02.2]} 3. Nc3 {[%clk 0:03:03.6]} 3... Nc6 {[%clk 0:03:01.5]} 4.
g3 {[%clk 0:03:03.9]} 4... g6 {[%clk 0:03:00.7]} 5. Bg2 {[%clk 0:03:05.8]} 5...
Bg7 {[%clk 0:03:01.9]} 6. O-O {[%clk 0:03:06.9]} 6... e5 {[%clk 0:03:02.2]} 7.
a4 {[%clk 0:03:07.1]} 7... Nge7 {[%clk 0:03:03.7]} 8. d3 {[%clk 0:03:09]} 8...
O-O {[%clk 0:03:04.6]} 9. Nd2 {[%clk 0:03:10.9]} 9... Nd4 {[%clk 0:03:03.7]} 10.
Nc4 {[%clk 0:03:11.8]} 10... Be6 {[%clk 0:03:01.7]} 11. f4 {[%clk 0:02:52.8]}
11... exf4 {[%clk 0:02:56]} 12. Bxf4 {[%clk 0:02:49.8]} 12... d5 {[%clk
0:02:57.4]} 13. exd5 {[%clk 0:02:40.3]} 13... Nxd5 {[%clk 0:02:59.3]} 14. Nxd5
{[%clk 0:02:36.7]} 14... Bxd5 {[%clk 0:03:00.3]} 15. Bxd5 {[%clk 0:02:37.9]}
15... Qxd5 {[%clk 0:03:00.4]} 16. c3 {[%clk 0:02:39.8]} 16... Ne6 {[%clk
0:02:59.4]} 17. Bd6 {[%clk 0:02:35.4]} 17... Rfd8 {[%clk 0:02:59.3]} 18. Qf3
{[%clk 0:02:35.8]} 18... Qxf3 {[%clk 0:02:36.3]} 19. Rxf3 {[%clk 0:02:36.6]}
19... Rd7 {[%clk 0:02:37.8]} 20. Be5 {[%clk 0:02:33]} 20... Ng5 {[%clk
0:02:28.5]} 21. Re3 {[%clk 0:02:32.2]} 21... Re8 {[%clk 0:02:29.3]} 22. Rae1
{[%clk 0:02:28.6]} 22... Bxe5 {[%clk 0:02:29.6]} 23. Nxe5 {[%clk 0:02:26.3]}
23... Rxe5 {[%clk 0:02:30.6]} 24. Rxe5 {[%clk 0:02:27.6]} 24... Nf3+ {[%clk
0:02:31.6]} 25. Kf2 {[%clk 0:02:26.2]} 25... Nxe5 {[%clk 0:02:31.6]} 26. Rxe5
{[%clk 0:02:28.1]} 26... Rxd3 {[%clk 0:02:32.8]} 27. Ke2 {[%clk 0:02:23.4]}
27... Rd7 {[%clk 0:02:11.9]} 28. Rxc5 {[%clk 0:02:24]} 28... f5 {[%clk
0:02:13.4]} 29. a5 {[%clk 0:02:24.4]} 29... Kf7 {[%clk 0:02:13.6]} 30. b4 {[%clk
0:02:25.7]} 30... Kf6 {[%clk 0:02:12.5]} 31. h4 {[%clk 0:02:26]} 31... h6 {[%clk
0:02:12]} 32. Ke3 {[%clk 0:02:26.5]} 32... g5 {[%clk 0:02:13.4]} 33. hxg5+
{[%clk 0:02:27.7]} 33... hxg5 {[%clk 0:02:11.1]} 34. Rc8 {[%clk 0:02:21.3]}
34... Re7+ {[%clk 0:01:58.2]} 35. Kf2 {[%clk 0:02:15.3]} 35... Ke5 {[%clk
0:01:51.6]} 36. Rg8 {[%clk 0:02:10.4]} 36... Rc7 {[%clk 0:01:01.1]} 37. Rxg5
{[%clk 0:02:09]} 37... Kf6 {[%clk 0:00:53.4]} 38. Rh5 {[%clk 0:02:04.5]} 38...
Kg6 {[%clk 0:00:54.6]} 39. Rh8 {[%clk 0:01:59.8]} 39... Rxc3 {[%clk 0:00:56]}
40. Rb8 {[%clk 0:02:01.2]} 40... Rc7 {[%clk 0:00:55.3]} 41. b5 {[%clk
0:01:52.6]} 41... Kg5 {[%clk 0:00:53.2]} 42. Ke3 {[%clk 0:01:53.8]} 42... Rc3+
{[%clk 0:00:48.5]} 43. Kd4 {[%clk 0:01:51.6]} 43... Rc7 {[%clk 0:00:45.2]} 44.
Ra8 {[%clk 0:01:48.1]} 44... b6 {[%clk 0:00:40.9]} 45. a6 {[%clk 0:01:46]} 45...
Kg4 {[%clk 0:00:34.8]} 46. Rg8+ {[%clk 0:01:46.9]} 46... Kf3 {[%clk 0:00:35.9]}
47. Kd5 {[%clk 0:01:43.2]} 47... Rc5+ {[%clk 0:00:36.3]} 48. Kd6 {[%clk
0:01:44.6]} 48... Rxb5 {[%clk 0:00:37.8]} 49. Kc6 {[%clk 0:01:45.9]} 49... Re5
{[%clk 0:00:37.6]} 50. Rg7 {[%clk 0:01:36.2]} 50... b5 {[%clk 0:00:38.1]} 51.
Rxa7 {[%clk 0:01:28.1]} 51... Kxg3 {[%clk 0:00:38.2]} 52. Rb7 {[%clk 0:01:27.5]}
52... f4 {[%clk 0:00:33.1]} 53. a7 {[%clk 0:01:28.1]} 53... Re6+ {[%clk
0:00:21.9]} 54. Kxb5 {[%clk 0:01:26.8]} 54... Re5+ {[%clk 0:00:23.3]} 55. Kb4
{[%clk 0:01:27]} 55... Re4+ {[%clk 0:00:24.6]} 56. Ka3 {[%clk 0:01:26.1]} 56...
Re1 {[%clk 0:00:25.6]} 57. Ka2 {[%clk 0:01:26.9]} 57... Re2+ {[%clk 0:00:23.9]}
58. Rb2 {[%clk 0:01:25.4]} 58... Re8 {[%clk 0:00:19.4]} 59. Rb8 {[%clk
0:01:26.3]} 59... Re2+ {[%clk 0:00:20.5]} 60. Kb1 {[%clk 0:01:21.8]} 60... Re1+
{[%clk 0:00:21.6]} 61. Kb2 {[%clk 0:01:19.9]} 61... Re2+ {[%clk 0:00:23.5]} 62.
Kc3 {[%clk 0:01:17.9]} 62... Re3+ {[%clk 0:00:24.9]} 63. Kd2 {[%clk 0:01:17.7]}
63... Ra3 {[%clk 0:00:24.2]} 64. Rg8+ {[%clk 0:01:19.2]} 64... Kf2 {[%clk
0:00:23.9]} 65. a8=Q {[%clk 0:01:21.1]} 65... Rxa8 {[%clk 0:00:24.8]} 66. Rxa8
{[%clk 0:01:23]} 66... f3 {[%clk 0:00:26.2]} 67. Rf8 {[%clk 0:01:24.1]} 67...
Kg2 {[%clk 0:00:27.5]} 68. Ke3 {[%clk 0:01:26]} 1-0

[Event "*** Titled Tuesday 3|2 Blitz (Early)"]
[Site "Chess.com"]
[Date "2017.01.03"]
[Round "9"]
[White "Morshynska"]
[Black "bugsbunny444"]
[Result "0-1"]
[WhiteElo "2107"]
[BlackElo "2336"]
[TimeControl "180+2"]
[EndTime "12:58:57 PST"]
[Termination "bugsbunny444 won by resignation"]

1. Nf3 {[%clk 0:02:41.7]} 1... d5 {[%clk 0:02:54.4]} 2. g3 {[%clk 0:02:42.6]}
2... Nc6 {[%clk 0:02:55.3]} 3. d4 {[%clk 0:02:43.1]} 3... Bf5 {[%clk 0:02:56.3]}
4. Bg2 {[%clk 0:02:43.2]} 4... Nb4 {[%clk 0:02:57.5]} 5. Na3 {[%clk 0:02:43.3]}
5... e6 {[%clk 0:02:58.8]} 6. c3 {[%clk 0:02:39.8]} 6... Nc6 {[%clk 0:02:58.1]}
7. O-O {[%clk 0:02:39.7]} 7... Nf6 {[%clk 0:02:59.2]} 8. Nc2 {[%clk 0:02:38.2]}
8... Be4 {[%clk 0:02:59]} 9. Nfe1 {[%clk 0:02:33.5]} 9... Bxg2 {[%clk
0:02:57.7]} 10. Kxg2 {[%clk 0:02:31.9]} 10... Bd6 {[%clk 0:02:58.8]} 11. f4
{[%clk 0:02:31.4]} 11... O-O {[%clk 0:02:56]} 12. Nd3 {[%clk 0:02:32]} 12... Ne4
{[%clk 0:02:55.8]} 13. Ne3 {[%clk 0:02:31.5]} 13... Ne7 {[%clk 0:02:54.8]} 14.
Bd2 {[%clk 0:02:24.6]} 14... b6 {[%clk 0:02:53.6]} 15. c4 {[%clk 0:02:11.1]}
15... c5 {[%clk 0:02:43]} 16. dxc5 {[%clk 0:02:07.9]} 16... bxc5 {[%clk
0:02:41.3]} 17. cxd5 {[%clk 0:02:06.8]} 17... exd5 {[%clk 0:02:43.2]} 18. b3
{[%clk 0:02:02.8]} 18... d4 {[%clk 0:02:31.6]} 19. Nc4 {[%clk 0:02:01.8]} 19...
Nf5 {[%clk 0:02:32.9]} 20. Kg1 {[%clk 0:01:52.4]} 20... Re8 {[%clk 0:02:31.9]}
21. Rf3 {[%clk 0:01:33.1]} 21... Rc8 {[%clk 0:02:30.7]} 22. Qf1 {[%clk 0:01:31]}
22... Bb8 {[%clk 0:02:27.4]} 23. Rd1 {[%clk 0:01:27]} 23... Qd5 {[%clk
0:02:28.1]} 24. Qg2 {[%clk 0:01:23]} 24... h5 {[%clk 0:02:23.4]} 25. Nf2 {[%clk
0:01:01.8]} 25... Ned6 {[%clk 0:02:03.3]} 26. Nxd6 {[%clk 0:00:49]} 26... Bxd6
{[%clk 0:01:58.3]} 27. e4 {[%clk 0:00:16.8]} 27... dxe3 {[%clk 0:01:52.5]} 28.
Bxe3 {[%clk 0:00:16.3]} 28... Qc6 {[%clk 0:00:48.7]} 29. Bc1 {[%clk 0:00:11.6]}
29... Re2 {[%clk 0:00:34.2]} 30. Rfd3 {[%clk 0:00:09.5]} 30... c4 {[%clk
0:00:21.4]} 31. Qxc6 {[%clk 0:00:08.9]} 31... Rxc6 {[%clk 0:00:23.3]} 32. bxc4
{[%clk 0:00:09.5]} 32... Bc5 {[%clk 0:00:24.6]} 33. Rf1 {[%clk 0:00:07.9]} 33...
Rxa2 {[%clk 0:00:21.2]} 34. Rd2 {[%clk 0:00:05.2]} 34... Rca6 {[%clk 0:00:14.3]}
35. Rxa2 {[%clk 0:00:05.4]} 35... Rxa2 {[%clk 0:00:15.4]} 36. Kg2 {[%clk
0:00:06.5]} 36... Be3 {[%clk 0:00:13.8]} 37. Kf3 {[%clk 0:00:05]} 37... Rxf2+
{[%clk 0:00:10.2]} 38. Rxf2 {[%clk 0:00:05.6]} 38... Bxc1 {[%clk 0:00:11.6]} 39.
Rc2 {[%clk 0:00:06.3]} 39... Nd4+ {[%clk 0:00:12.2]} 40. Ke4 {[%clk 0:00:07.4]}
40... Nxc2 {[%clk 0:00:13.6]} 41. c5 {[%clk 0:00:09.3]} 41... Nb4 {[%clk
0:00:13.9]} 42. Kd4 {[%clk 0:00:10.4]} 42... a5 {[%clk 0:00:13.4]} 43. Kc4
{[%clk 0:00:12.3]} 43... Be3 {[%clk 0:00:14.3]} 44. f5 {[%clk 0:00:12.6]} 44...
Kf8 {[%clk 0:00:14]} 45. h3 {[%clk 0:00:13.1]} 45... Ke7 {[%clk 0:00:15.1]} 46.
g4 {[%clk 0:00:14.4]} 46... hxg4 {[%clk 0:00:16.2]} 47. hxg4 {[%clk 0:00:16.3]}
47... Kd7 {[%clk 0:00:17.7]} 48. Kb5 {[%clk 0:00:17.3]} 48... Nc6 {[%clk
0:00:16.5]} 49. Ka4 {[%clk 0:00:16.6]} 49... Bxc5 {[%clk 0:00:17.3]} 50. Kb5
{[%clk 0:00:17.5]} 50... Bb4 {[%clk 0:00:18.2]} 51. Ka4 {[%clk 0:00:18.3]} 51...
f6 {[%clk 0:00:19.4]} 52. Kb5 {[%clk 0:00:19.3]} 52... Ne5 {[%clk 0:00:20.8]}
0-1